[Event "ETCC Women 2013"]
[Site "Warsaw"]
[Date "2013.11.14"]
[Round "6"]
[White "Kaplan, Ebru"]
[Black "Sikorova, Olga"]
[Result "1/2-1/2"]
[ECO "C07"]
[WhiteElo "1882"]
[BlackElo "2278"]
[PlyCount "82"]
[EventDate "2013.??.??"]
[EventCountry "POL"]
[WhiteTeam "Turkey"]
[BlackTeam "Czech Republic"]
[WhiteTeamCountry "TUR"]
[BlackTeamCountry "CZE"]
[TimeControl "40/5400+30:1800+30"]

1. e4 {[%emt 0:00:00]} e6 {[%emt 0:00:00]} 2. d4 {[%emt 0:00:00]} d5 {[%emt 0:
00:00]} 3. Nd2 {[%emt 0:00:00]} c5 {[%emt 0:00:00]} 4. exd5 {[%emt 0:00:09]}
Qxd5 {[%emt 0:00:09]} 5. dxc5 {[%emt 0:00:17]} Bxc5 {[%emt 0:04:30]} 6. Ngf3 {
[%emt 0:00:24]} Nf6 {[%emt 0:05:05]} 7. Bc4 {[%emt 0:01:17]} Qd8 {[%emt 0:05:
55]} 8. Qe2 {[%emt 0:05:31]} Nc6 {[%emt 0:03:53]} 9. Nb3 {[%emt 0:05:20]} Bd6 {
[%emt 0:14:40]} 10. O-O {[%emt 0:06:10]} Qc7 {[%emt 0:03:31]} 11. h3 {[%emt 0:
15:26]} Bd7 {[%emt 0:08:44]} 12. a4 {[%emt 0:06:11]} h6 {[%emt 0:05:12]} 13.
Nbd4 {[%emt 0:10:22]} Nxd4 {[%emt 0:09:26]} 14. Nxd4 {[%emt 0:00:10]} a6 {
[%emt 0:00:46]} 15. c3 {[%emt 0:06:10]} O-O {[%emt 0:02:30]} 16. Be3 {[%emt 0:
05:48]} e5 {[%emt 0:01:41]} 17. Nc2 {[%emt 0:01:54]} Rac8 {[%emt 0:03:45]} 18.
Bb3 {[%emt 0:03:21]} Kh8 {[%emt 0:07:16]} 19. Rfd1 {[%emt 0:01:48]} Rce8 {
[%emt 0:06:38]} 20. a5 {[%emt 0:09:30]} Bc5 {[%emt 0:06:28]} 21. Bxc5 {[%emt 0:
05:46]} Qxc5 {[%emt 0:00:01]} 22. Rd2 {[%emt 0:01:40]} Be6 {[%emt 0:01:29]} 23.
Bxe6 {[%emt 0:00:43]} Rxe6 {[%emt 0:00:07]} 24. Qe3 {[%emt 0:00:28]} Qb5 {
[%emt 0:01:34]} 25. Nb4 {[%emt 0:03:16]} Rfe8 {[%emt 0:04:36]} 26. Qd3 {[%emt
0:05:00]} Qxd3 {[%emt 0:01:01]} 27. Rxd3 {[%emt 0:00:05]} e4 {[%emt 0:00:04]}
28. Rd2 {[%emt 0:00:40]} e3 {[%emt 0:00:16]} 29. fxe3 {[%emt 0:00:05]} Rxe3 {
[%emt 0:00:01]} 30. Rad1 {[%emt 0:00:05]} Kh7 {[%emt 0:01:46]} 31. Nd5 {[%emt
0:01:51]} Nxd5 {[%emt 0:01:17]} 32. Rxd5 {[%emt 0:00:06]} R8e7 {[%emt 0:00:47]}
33. Rd7 {[%emt 0:01:05]} Kg6 {[%emt 0:01:11]} 34. Rxe7 {[%emt 0:02:08]} Rxe7 {
[%emt 0:00:01]} 35. Kf2 {[%emt 0:00:01]} Kf5 {[%emt 0:01:39]} 36. Rd4 {[%emt 0:
02:37]} Ke5 {[%emt 0:01:11]} 37. Ke3 {[%emt 0:00:51]} f5 {[%emt 0:00:39]} 38.
b4 {[%emt 0:00:40]} g5 {[%emt 0:00:30]} 39. g3 {[%emt 0:01:39]} h5 {[%emt 0:00:
33]} 40. c4 {[%emt 0:00:00]} Kf6+ {[%emt 0:00:00]} 41. Kf3 {[%emt 0:08:28]} Ke6
{[%emt 0:04:50] Ke4 Ke5+} 1/2-1/2

[Event "ETCC Women 2013"]
[Site "Warsaw"]
[Date "2013.11.14"]
[Round "6"]
[White "Khotenashvili, Bela"]
[Black "Muzychuk, Mariya"]
[Result "0-1"]
[ECO "E10"]
[WhiteElo "2524"]
[BlackElo "2491"]
[PlyCount "72"]
[EventDate "2013.??.??"]
[EventCountry "POL"]
[WhiteTeam "Georgia"]
[BlackTeam "Ukraine"]
[WhiteTeamCountry "GEO"]
[BlackTeamCountry "UKR"]
[TimeControl "40/5400+30:1800+30"]

1. d4 {[%emt 0:00:00]} Nf6 {[%emt 0:00:00]} 2. c4 {[%emt 0:00:01]} e6 {[%emt 0:
00:05]} 3. Nf3 {[%emt 0:00:20]} c5 {[%emt 0:00:11]} 4. d5 {[%emt 0:00:24]} b5 {
[%emt 0:00:10]} 5. Bf4 {[%emt 0:02:11]} exd5 {[%emt 0:00:13]} 6. cxd5 {[%emt 0:
00:14]} Bb7 {[%emt 0:00:17]} 7. Nc3 {[%emt 0:06:02]} b4 {[%emt 0:13:11]} 8. Nb5
{[%emt 0:01:57]} Nxd5 {[%emt 0:00:41]} 9. Bd6 {[%emt 0:06:46]} Qb6 {[%emt 0:03:
20]} 10. Ne5 {[%emt 0:28:58]} a6 {[%emt 0:21:36]} 11. Nc4 {[%emt 0:01:48]} Qxb5
{[%emt 0:01:16]} 12. e4 {[%emt 0:00:20]} Nb6 {[%emt 0:02:08]} 13. Bxf8 {[%emt
0:04:57]} Nxc4 {[%emt 0:02:52]} 14. Bd6 {[%emt 0:14:18]} b3 {[%emt 0:05:27]}
15. Be5 {[%emt 0:06:22]} Qb4+ {[%emt 0:04:47]} 16. Bc3 {[%emt 0:00:05]} Nxb2 {
[%emt 0:00:24]} 17. Qf3 {[%emt 0:09:36]} Nd3+ {[%emt 0:22:05]} 18. Qxd3 {[%emt
0:04:04]} b2 {[%emt 0:00:13]} 19. Rb1 {[%emt 0:00:25]} Qxe4+ {[%emt 0:00:07]}
20. Kd2 {[%emt 0:03:12]} Qf4+ {[%emt 0:06:35]} 21. Qe3+ {[%emt 0:00:06]} Qxe3+
{[%emt 0:00:05]} 22. fxe3 {[%emt 0:00:03]} O-O {[%emt 0:00:42]} 23. Rxb2 {
[%emt 0:00:15]} Be4 {[%emt 0:01:30]} 24. Rb6 {[%emt 0:02:44]} Nc6 {[%emt 0:02:
55]} 25. a4 {[%emt 0:00:54]} a5 {[%emt 0:01:02]} 26. Bb5 {[%emt 0:03:26]} Rfb8
{[%emt 0:03:00]} 27. Rxb8+ {[%emt 0:01:14]} Rxb8 {[%emt 0:00:07]} 28. Ke2 {
[%emt 0:00:37]} Rb6 {[%emt 0:03:58]} 29. Ra1 {[%emt 0:01:12]} f6 {[%emt 0:01:
35]} 30. g4 {[%emt 0:01:27]} Kf7 {[%emt 0:01:03]} 31. Rc1 {[%emt 0:00:45]} d6 {
[%emt 0:00:21]} 32. h4 {[%emt 0:00:16]} Nb4 {[%emt 0:00:48]} 33. Bc4+ {[%emt 0:
00:52]} d5 {[%emt 0:00:30]} 34. Bb5 {[%emt 0:00:03]} Na2 {[%emt 0:00:36]} 35.
Bxa5 {[%emt 0:00:28]} Nxc1+ {[%emt 0:00:07]} 36. Kd1 {[%emt 0:00:01]} Rxb5 {
[%emt 0:00:29]} 0-1

[Event "ETCC Women 2013"]
[Site "Warsaw"]
[Date "2013.11.14"]
[Round "6"]
[White "Kosteniuk, Alexandra"]
[Black "Zawadzka, Jolanta"]
[Result "1/2-1/2"]
[ECO "B85"]
[WhiteElo "2510"]
[BlackElo "2383"]
[PlyCount "154"]
[EventDate "2013.??.??"]
[EventCountry "POL"]
[WhiteTeam "Russia"]
[BlackTeam "Poland"]
[WhiteTeamCountry "RUS"]
[BlackTeamCountry "POL"]
[TimeControl "40/5400+30:1800+30"]

1. e4 {[%emt 0:00:00]} c5 {[%emt 0:00:00]} 2. Nf3 {[%emt 0:00:00]} e6 {[%emt 0:
00:00]} 3. d4 {[%emt 0:00:00]} cxd4 {[%emt 0:00:00]} 4. Nxd4 {[%emt 0:00:00]}
Nc6 {[%emt 0:00:00]} 5. Nc3 {[%emt 0:00:02]} Qc7 {[%emt 0:00:00]} 6. Be2 {
[%emt 0:00:30]} a6 {[%emt 0:00:16]} 7. O-O {[%emt 0:01:14]} Nf6 {[%emt 0:00:18]
} 8. Be3 {[%emt 0:00:21]} Be7 {[%emt 0:00:19]} 9. f4 {[%emt 0:01:00]} d6 {
[%emt 0:00:08]} 10. Qe1 {[%emt 0:00:51]} O-O {[%emt 0:00:30]} 11. Qg3 {[%emt 0:
00:33]} Nxd4 {[%emt 0:00:48]} 12. Bxd4 {[%emt 0:00:06]} b5 {[%emt 0:00:35]} 13.
a3 {[%emt 0:00:17]} Bb7 {[%emt 0:00:48]} 14. Rae1 {[%emt 0:00:37]} Rad8 {[%emt
0:01:50]} 15. Bd3 {[%emt 0:01:06]} Rfe8 {[%emt 0:12:13]} 16. Kh1 {[%emt 0:00:
44]} Rd7 {[%emt 0:00:48]} 17. Re2 {[%emt 0:03:24]} Qd8 {[%emt 0:03:26]} 18. Qh3
{[%emt 0:12:53]} Bf8 {[%emt 0:05:08]} 19. f5 {[%emt 0:13:55]} e5 {[%emt 0:05:
58]} 20. Bf2 {[%emt 0:08:47]} d5 {[%emt 0:14:14]} 21. Bh4 {[%emt 0:01:30]} dxe4
{[%emt 0:06:29]} 22. Nxe4 {[%emt 0:04:50]} Be7 {[%emt 0:07:20]} 23. Bxf6 {
[%emt 0:08:54]} Bxf6 {[%emt 0:00:07]} 24. Nc5 {[%emt 0:00:24]} Rc7 {[%emt 0:02:
06]} 25. Nxb7 {[%emt 0:00:14]} Rxb7 {[%emt 0:00:05]} 26. Re4 {[%emt 0:05:46]}
Rd7 {[%emt 0:04:52]} 27. Rfe1 {[%emt 0:08:36]} Qc7 {[%emt 0:06:19]} 28. Qh5 {
[%emt 0:01:28]} Red8 {[%emt 0:04:29]} 29. g4 {[%emt 0:05:24]} g6 {[%emt 0:01:
56]} 30. Qh3 {[%emt 0:03:44]} Rd4 {[%emt 0:02:24]} 31. Qg3 {[%emt 0:02:57]} Qe7
{[%emt 0:04:40]} 32. Qf3 {[%emt 0:06:57]} Rxe4 {[%emt 0:00:31]} 33. Rxe4 {
[%emt 0:00:12]} Bg5 {[%emt 0:01:51]} 34. Kg2 {[%emt 0:03:26]} Bc1 {[%emt 0:02:
48]} 35. a4 {[%emt 0:02:48]} Qc5 {[%emt 0:10:06]} 36. axb5 {[%emt 0:00:36]}
axb5 {[%emt 0:00:05]} 37. fxg6 {[%emt 0:01:17]} fxg6 {[%emt 0:03:05]} 38. Qf6 {
[%emt 0:00:11]} Rf8 {[%emt 0:00:46]} 39. Rxe5 {[%emt 0:03:00]} Qd4 {[%emt 0:00:
44]} 40. Qe6+ {[%emt 0:00:00]} Kg7 {[%emt 0:00:00]} 41. Re2 {[%emt 0:01:57]}
Bxb2 {[%emt 0:04:03]} 42. Qe4 {[%emt 0:08:25]} b4 {[%emt 0:04:23]} 43. g5 {
[%emt 0:03:14]} Rf4 {[%emt 0:05:03]} 44. Qxd4+ {[%emt 0:00:42]} Bxd4 {[%emt 0:
00:13]} 45. Kg3 {[%emt 0:00:25]} Rf7 {[%emt 0:00:23]} 46. h4 {[%emt 0:03:21]}
Bc3 {[%emt 0:00:52]} 47. Re8 {[%emt 0:03:53]} Rc7 {[%emt 0:00:33]} 48. Kg4 {
[%emt 0:01:22]} Kf7 {[%emt 0:01:04]} 49. Rb8 {[%emt 0:00:18]} Kg7 {[%emt 0:01:
58]} 50. Be4 {[%emt 0:01:52]} Rd7 {[%emt 0:04:03]} 51. Rb5 {[%emt 0:00:10]} Kf7
{[%emt 0:01:17]} 52. Bd5+ {[%emt 0:00:44]} Kg7 {[%emt 0:02:09]} 53. h5 {[%emt
0:01:02]} gxh5+ {[%emt 0:00:20]} 54. Kxh5 {[%emt 0:00:02]} Bd2 {[%emt 0:02:52]}
55. Bb3 {[%emt 0:01:46]} Kf8 {[%emt 0:03:54]} 56. Kh6 {[%emt 0:01:29]} Rc7 {
[%emt 0:02:34]} 57. Rf5+ {[%emt 0:02:13]} Ke8 {[%emt 0:01:01]} 58. Ba4+ {[%emt
0:00:12]} Ke7 {[%emt 0:00:17]} 59. Kxh7 {[%emt 0:00:37]} Ke6+ {[%emt 0:02:19]}
60. Kg6 {[%emt 0:00:01]} Bc3 {[%emt 0:01:12]} 61. Bb3+ {[%emt 0:00:19]} Kd6 {
[%emt 0:00:06]} 62. Rd5+ {[%emt 0:01:17]} Ke7 {[%emt 0:00:11]} 63. Rb5 {[%emt
0:01:12]} Kd6 {[%emt 0:01:06]} 64. Rb6+ {[%emt 0:00:16]} Ke5 {[%emt 0:00:52]}
65. Rf6 {[%emt 0:01:00]} Ke4 {[%emt 0:00:55]} 66. Rf7 {[%emt 0:02:44]} Rc5 {
[%emt 0:00:03]} 67. Rf2 {[%emt 0:01:31]} Bd4 {[%emt 0:00:20]} 68. Rf8 {[%emt 0:
02:35]} Be3 {[%emt 0:00:29]} 69. Re8+ {[%emt 0:00:04]} Re5 {[%emt 0:00:51]} 70.
Ba4 {[%emt 0:01:03]} Rxe8 {[%emt 0:00:20]} 71. Bxe8 {[%emt 0:00:01]} Ke5 {
[%emt 0:00:09]} 72. Bf7 {[%emt 0:00:40]} Kd6 {[%emt 0:00:51]} 73. Kf5 {[%emt 0:
00:39]} Ke7 {[%emt 0:00:05]} 74. g6 {[%emt 0:00:28]} Bd4 {[%emt 0:00:11]} 75.
Ke4 {[%emt 0:00:25]} Bc3 {[%emt 0:00:11]} 76. Kd3 {[%emt 0:00:08]} Kf8 {[%emt
0:00:05]} 77. Kc4 {[%emt 0:00:09]} Kg7 {[%emt 0:00:04]} 1/2-1/2

[Event "ETCC Women 2013"]
[Site "Warsaw"]
[Date "2013.11.14"]
[Round "6"]
[White "Kulon, Klaudia"]
[Black "Schut, Lisa"]
[Result "1-0"]
[ECO "A22"]
[WhiteElo "2276"]
[BlackElo "2333"]
[PlyCount "139"]
[EventDate "2013.??.??"]
[EventCountry "POL"]
[WhiteTeam "Poland"]
[BlackTeam "Netherlands"]
[WhiteTeamCountry "POL"]
[BlackTeamCountry "NED"]
[TimeControl "40/5400+30:1800+30"]

1. c4 {[%emt 0:00:00]} e5 {[%emt 0:00:00]} 2. g3 {[%emt 0:00:47]} Nf6 {[%emt 0:
00:00]} 3. Nc3 {[%emt 0:01:27]} c6 {[%emt 0:00:26]} 4. Bg2 {[%emt 0:08:13]} d5
{[%emt 0:02:33]} 5. cxd5 {[%emt 0:00:07]} cxd5 {[%emt 0:00:05]} 6. e3 {[%emt 0:
00:07]} Nc6 {[%emt 0:03:37]} 7. d4 {[%emt 0:00:11]} e4 {[%emt 0:01:57]} 8. Nge2
{[%emt 0:00:08]} Bb4 {[%emt 0:05:00]} 9. O-O {[%emt 0:01:08]} O-O {[%emt 0:03:
39]} 10. a3 {[%emt 0:03:27]} Bxc3 {[%emt 0:00:28]} 11. Nxc3 {[%emt 0:00:02]}
Bg4 {[%emt 0:02:49]} 12. f3 {[%emt 0:06:14]} exf3 {[%emt 0:09:39]} 13. Bxf3 {
[%emt 0:00:19]} Bh3 {[%emt 0:07:23]} 14. Bg2 {[%emt 0:07:00]} Bxg2 {[%emt 0:01:
18]} 15. Kxg2 {[%emt 0:00:02]} Re8 {[%emt 0:03:36]} 16. b4 {[%emt 0:04:05]} Qd7
{[%emt 0:09:55]} 17. Bd2 {[%emt 0:05:12]} Ne7 {[%emt 0:01:30]} 18. Qf3 {[%emt
0:02:45]} Nc8 {[%emt 0:05:21]} 19. Rae1 {[%emt 0:18:06]} Qe6 {[%emt 0:12:01]}
20. Nb5 {[%emt 0:01:21]} Qc6 {[%emt 0:01:17]} 21. a4 {[%emt 0:06:23]} Nb6 {
[%emt 0:00:56]} 22. Qf4 {[%emt 0:03:15]} Nxa4 {[%emt 0:05:50]} 23. Nd6 {[%emt
0:03:07]} Re6 {[%emt 0:02:50]} 24. Nf5 {[%emt 0:00:07]} Qc2 {[%emt 0:00:35]}
25. e4 {[%emt 0:07:31]} dxe4 {[%emt 0:12:05]} 26. d5 {[%emt 0:06:22]} Nxd5 {
[%emt 0:04:04]} 27. Nh6+ {[%emt 0:00:15]} gxh6 {[%emt 0:00:02]} 28. Qxf7+ {
[%emt 0:00:05]} Kh8 {[%emt 0:00:04]} 29. Qxe6 {[%emt 0:00:15]} Qxd2+ {[%emt 0:
00:56]} 30. Kh1 {[%emt 0:01:14]} Qg5 {[%emt 0:01:37]} 31. Rf5 {[%emt 0:01:34]}
Nc7 {[%emt 0:00:43]} 32. Qxe4 {[%emt 0:02:52]} Qg7 {[%emt 0:00:49]} 33. Re5 {
[%emt 0:00:54]} Nc3 {[%emt 0:00:53]} 34. Qxb7 {[%emt 0:00:55]} Qd7 {[%emt 0:00:
25]} 35. Qxa8+ {[%emt 0:03:58]} Nxa8 {[%emt 0:00:07]} 36. Re8+ {[%emt 0:00:02]}
Kg7 {[%emt 0:00:15]} 37. R8e7+ {[%emt 0:00:06]} Qxe7 {[%emt 0:00:13]} 38. Rxe7+
{[%emt 0:00:01]} Kg6 {[%emt 0:00:10]} 39. Rxa7 {[%emt 0:00:14]} Nb6 {[%emt 0:
00:03]} 40. Ra6 {[%emt 0:00:00]} Ncd5 {[%emt 0:00:00]} 41. Kg2 {[%emt 0:01:05]}
h5 {[%emt 0:04:21]} 42. h4 {[%emt 0:03:33]} Kf5 {[%emt 0:01:35]} 43. b5 {[%emt
0:04:19]} h6 {[%emt 0:13:07]} 44. Ra7 {[%emt 0:05:22]} Ne3+ {[%emt 0:04:32]}
45. Kf3 {[%emt 0:01:08]} Nec4 {[%emt 0:00:02]} 46. Rf7+ {[%emt 0:03:19]} Kg6 {
[%emt 0:00:40]} 47. Rc7 {[%emt 0:06:11]} Kf5 {[%emt 0:02:28]} 48. Rf7+ {[%emt
0:00:23]} Kg6 {[%emt 0:00:03]} 49. Rf4 {[%emt 0:00:03]} Nd6 {[%emt 0:00:44]}
50. Rd4 {[%emt 0:04:32]} Nf5 {[%emt 0:00:04]} 51. Rd8 {[%emt 0:00:26]} Kf6 {
[%emt 0:00:31]} 52. Rd1 {[%emt 0:03:57]} Ke5 {[%emt 0:00:53]} 53. Re1+ {[%emt
0:00:26]} Kf6 {[%emt 0:00:59]} 54. Rc1 {[%emt 0:00:31]} Nd7 {[%emt 0:04:52]}
55. b6 {[%emt 0:03:17]} Nd6 {[%emt 0:01:22]} 56. Rd1 {[%emt 0:02:38]} Ke6 {
[%emt 0:02:05]} 57. Rb1 {[%emt 0:00:05]} Nc4 {[%emt 0:01:27]} 58. Re1+ {[%emt
0:00:05]} Kd5 {[%emt 0:01:14]} 59. b7 {[%emt 0:01:32]} Nce5+ {[%emt 0:00:09]}
60. Ke3 {[%emt 0:00:49]} Nc4+ {[%emt 0:01:37]} 61. Kf4 {[%emt 0:00:22]} Nd6 {
[%emt 0:00:24]} 62. Re7 {[%emt 0:01:11]} Nb8 {[%emt 0:00:06]} 63. Rh7 {[%emt 0:
00:12]} Nc6 {[%emt 0:00:58]} 64. Rc7 {[%emt 0:00:48]} Nb8 {[%emt 0:00:34]} 65.
Rc8 {[%emt 0:01:34]} Na6 {[%emt 0:00:12]} 66. b8=Q {[%emt 0:00:21]} Nxb8 {
[%emt 0:00:02]} 67. Rxb8 {[%emt 0:00:04]} Ke6 {[%emt 0:00:08]} 68. Rb6 {[%emt
0:00:03]} Ke7 {[%emt 0:00:05]} 69. Rxd6 {[%emt 0:00:39]} Kxd6 {[%emt 0:00:09]}
70. Kf5 {[%emt 0:00:03]} 1-0

[Event "ETCC Women 2013"]
[Site "Warsaw"]
[Date "2013.11.14"]
[Round "6"]
[White "Kursova, Maria"]
[Black "Nicolas Zapata, Irene"]
[Result "1-0"]
[ECO "D37"]
[WhiteElo "2339"]
[BlackElo "2241"]
[PlyCount "95"]
[EventDate "2013.??.??"]
[EventCountry "POL"]
[WhiteTeam "Armenia"]
[BlackTeam "Spain"]
[WhiteTeamCountry "ARM"]
[BlackTeamCountry "ESP"]
[TimeControl "40/5400+30:1800+30"]

1. d4 {[%emt 0:00:00]} Nf6 {[%emt 0:00:00]} 2. Nf3 {[%emt 0:00:00]} e6 {[%emt
0:00:00]} 3. c4 {[%emt 0:00:00]} d5 {[%emt 0:00:11]} 4. Nc3 {[%emt 0:00:26]}
Be7 {[%emt 0:00:48]} 5. Bf4 {[%emt 0:00:44]} O-O {[%emt 0:03:13]} 6. e3 {[%emt
0:00:31]} Nbd7 {[%emt 0:02:06]} 7. a3 {[%emt 0:06:31]} c5 {[%emt 0:02:52]} 8.
cxd5 {[%emt 0:01:41]} Nxd5 {[%emt 0:01:57]} 9. Nxd5 {[%emt 0:00:41]} exd5 {
[%emt 0:00:07]} 10. dxc5 {[%emt 0:01:20]} Nxc5 {[%emt 0:00:56]} 11. Be5 {[%emt
0:03:46]} Bf5 {[%emt 0:09:00]} 12. Be2 {[%emt 0:03:28]} Qb6 {[%emt 0:08:39]}
13. O-O {[%emt 0:17:38]} Qg6 {[%emt 0:08:38]} 14. Rc1 {[%emt 0:20:41]} Nd3 {
[%emt 0:17:07]} 15. Rc7 {[%emt 0:03:09]} Bd8 {[%emt 0:01:29]} 16. Rxb7 {[%emt
0:02:24]} Nxe5 {[%emt 0:14:40]} 17. Nxe5 {[%emt 0:00:56]} Qd6 {[%emt 0:00:57]}
18. Qd4 {[%emt 0:16:12]} Bc7 {[%emt 0:10:26]} 19. Nf3 {[%emt 0:03:30]} Bb6 {
[%emt 0:06:03]} 20. Qf4 {[%emt 0:03:55]} Qxf4 {[%emt 0:02:12]} 21. exf4 {[%emt
0:00:02]} Rac8 {[%emt 0:05:40]} 22. Ba6 {[%emt 0:04:46]} Rc6 {[%emt 0:03:18]}
23. Ne5 {[%emt 0:01:49]} Rc2 {[%emt 0:00:16]} 24. Bd3 {[%emt 0:00:18]} Bxd3 {
[%emt 0:00:18]} 25. Nxd3 {[%emt 0:00:02]} Rd2 {[%emt 0:00:10]} 26. Nb4 {[%emt
0:01:26]} Re8 {[%emt 0:00:43]} 27. g3 {[%emt 0:03:29]} h6 {[%emt 0:00:09]} 28.
Rd7 {[%emt 0:02:10]} Ree2 {[%emt 0:00:14]} 29. Nxd5 {[%emt 0:00:07]} Bxf2+ {
[%emt 0:00:30]} 30. Kg2 {[%emt 0:00:03]} Bc5+ {[%emt 0:01:45]} 31. Kf3 {[%emt
0:00:09]} f5 {[%emt 0:00:17]} 32. g4 {[%emt 0:01:09]} Rxh2 {[%emt 0:00:15]} 33.
gxf5 {[%emt 0:00:30]} Rd3+ {[%emt 0:00:11]} 34. Ke4 {[%emt 0:01:12]} Rd4+ {
[%emt 0:00:59]} 35. Kf3 {[%emt 0:00:05]} Rd3+ {[%emt 0:00:21]} 36. Ke4 {[%emt
0:00:02]} Rd4+ {[%emt 0:00:04]} 37. Kf3 {[%emt 0:00:05]} Rdd2 {[%emt 0:01:17]}
38. f6 {[%emt 0:01:27]} Rd3+ {[%emt 0:00:35]} 39. Ke4 {[%emt 0:00:26]} Rd4+ {
[%emt 0:00:05]} 40. Ke5 {[%emt 0:00:00]} Rh5+ {[%emt 0:00:00]} 41. f5 {[%emt 0:
02:45]} Rhh4 {[%emt 0:04:02]} 42. Rxg7+ {[%emt 0:07:21]} Kf8 {[%emt 0:02:20]}
43. Re1 {[%emt 0:01:04]} Rc4 {[%emt 0:04:21]} 44. Ne7 {[%emt 0:08:35]} Bxe7 {
[%emt 0:08:40]} 45. fxe7+ {[%emt 0:00:15]} Ke8 {[%emt 0:00:10]} 46. f6 {[%emt
0:05:45]} Rh5+ {[%emt 0:02:32]} 47. Kd6 {[%emt 0:00:15]} Rd4+ {[%emt 0:00:06]}
48. Ke6 {[%emt 0:00:12]} 1-0

[Event "ETCC Women 2013"]
[Site "Warsaw"]
[Date "2013.11.14"]
[Round "6"]
[White "Maisuradze, Nino"]
[Black "Brunello, Marina"]
[Result "0-1"]
[ECO "D44"]
[WhiteElo "2302"]
[BlackElo "2248"]
[PlyCount "98"]
[EventDate "2013.??.??"]
[EventCountry "POL"]
[WhiteTeam "France"]
[BlackTeam "Italy"]
[WhiteTeamCountry "FRA"]
[BlackTeamCountry "ITA"]
[TimeControl "40/5400+30:1800+30"]

1. d4 {[%emt 0:00:00]} d5 {[%emt 0:00:00]} 2. c4 {[%emt 0:00:00]} c6 {[%emt 0:
00:00]} 3. Nf3 {[%emt 0:00:00]} Nf6 {[%emt 0:00:00]} 4. Nc3 {[%emt 0:00:00]} e6
{[%emt 0:00:07]} 5. Bg5 {[%emt 0:00:26]} dxc4 {[%emt 0:00:24]} 6. e4 {[%emt 0:
04:31]} b5 {[%emt 0:00:04]} 7. e5 {[%emt 0:00:06]} h6 {[%emt 0:00:04]} 8. Bh4 {
[%emt 0:00:36]} g5 {[%emt 0:00:10]} 9. Nxg5 {[%emt 0:13:56]} hxg5 {[%emt 0:00:
05]} 10. Bxg5 {[%emt 0:00:02]} Nbd7 {[%emt 0:00:07]} 11. exf6 {[%emt 0:02:56]}
Bb7 {[%emt 0:00:06]} 12. a4 {[%emt 0:09:29]} Bb4 {[%emt 0:16:49]} 13. Be2 {
[%emt 0:03:12]} Qb6 {[%emt 0:04:27]} 14. O-O {[%emt 0:11:31]} O-O-O {[%emt 0:
03:28]} 15. Bf3 {[%emt 0:04:58]} a6 {[%emt 0:05:01]} 16. Qe2 {[%emt 0:04:07]}
Qxd4 {[%emt 0:09:41]} 17. axb5 {[%emt 0:01:26]} axb5 {[%emt 0:04:29]} 18. Rfd1
{[%emt 0:34:41]} Qe5 {[%emt 0:03:20]} 19. Qxe5 {[%emt 0:00:04]} Nxe5 {[%emt 0:
00:05]} 20. Rxd8+ {[%emt 0:00:14]} Rxd8 {[%emt 0:00:29]} 21. Bh5 {[%emt 0:00:
16]} Rh8 {[%emt 0:08:18]} 22. Be2 {[%emt 0:00:08]} Nd3 {[%emt 0:05:01]} 23. Nd1
{[%emt 0:02:30]} Bd6 {[%emt 0:03:08]} 24. h4 {[%emt 0:01:59]} Be5 {[%emt 0:01:
37]} 25. Rb1 {[%emt 0:00:06]} c5 {[%emt 0:03:26]} 26. b3 {[%emt 0:01:36]} Be4 {
[%emt 0:01:37]} 27. bxc4 {[%emt 0:01:04]} b4 {[%emt 0:00:24]} 28. Rb3 {[%emt 0:
00:54]} Rd8 {[%emt 0:00:41]} 29. g3 {[%emt 0:01:22]} Kc7 {[%emt 0:07:36]} 30.
h5 {[%emt 0:00:13]} Bh7 {[%emt 0:01:46]} 31. Be3 {[%emt 0:00:52]} Bxf6 {[%emt
0:03:09]} 32. Kh2 {[%emt 0:01:07]} Kc6 {[%emt 0:00:48]} 33. g4 {[%emt 0:01:17]}
Ne1 {[%emt 0:01:37]} 34. Bxc5 {[%emt 0:00:46]} Kxc5 {[%emt 0:00:42]} 35. Nb2 {
[%emt 0:00:25]} Ra8 {[%emt 0:01:41]} 36. g5 {[%emt 0:00:33]} Bxg5 {[%emt 0:00:
28]} 37. Bd1 {[%emt 0:00:29]} Ra3 {[%emt 0:02:38]} 38. Kg1 {[%emt 0:00:24]}
Rxb3 {[%emt 0:01:13]} 39. Bxb3 {[%emt 0:00:05]} Bc2 {[%emt 0:00:21]} 40. f4 {
[%emt 0:00:00]} Bxf4 {[%emt 0:00:00]} 41. Na4+ {[%emt 0:04:07]} Kd4 {[%emt 0:
02:57]} 42. Bxc2 {[%emt 0:00:29]} Nxc2 {[%emt 0:00:05]} 43. c5 {[%emt 0:00:12]}
Kd5 {[%emt 0:00:10]} 44. Kf2 {[%emt 0:00:49]} Nd4 {[%emt 0:00:57]} 45. Ke1 {
[%emt 0:01:27]} Bh6 {[%emt 0:00:20]} 46. Kd1 {[%emt 0:01:45]} Nb3 {[%emt 0:00:
20]} 47. Nb6+ {[%emt 0:00:45]} Kxc5 {[%emt 0:00:13]} 48. Nd7+ {[%emt 0:00:10]}
Kd6 {[%emt 0:00:17]} 49. Nf6 {[%emt 0:00:30]} Nd4 {[%emt 0:00:23]} 0-1